fUSD/lending_fUSD_20240329
["ID","MTS","AMOUNT","RATE_DAILY","PERIOD"]
[320916375,1711707079351,-1513.08,0.00049589,120]
[320916376,1711707079362,-537.73419797,0.00049589,120]
[320916377,1711707079374,-1029.0,0.00049589,120]
[320916378,1711707079385,-532.34,0.00049589,120]
[320916379,1711707079395,-500.0,0.00049589,120]
[320916380,1711707079407,-2637.0,0.00049589,120]
[320916381,1711707079416,-500.0,0.00049589,120]
[320916382,1711707079426,-500.0,0.00049589,120]
[320916383,1711707079435,-500.0,0.00049589,120]
[320916384,1711707079446,-500.0,0.00049589,120]
[320916385,1711707079455,-929.24,0.00049589,120]
[320916386,1711707079465,-532.53,0.00049589,120]
[320916387,1711707079474,-500.0,0.00049589,120]
[320916388,1711707079484,-500.0,0.00049589,120]
[320916389,1711707079493,-500.0,0.00049589,120]
[320916390,1711707079502,-1577.93,0.00049589,120]
[320916391,1711707079512,-500.0,0.00049589,60]
[320916392,1711707079521,-500.0,0.00049589,120]
[320916393,1711707079531,-607.96,0.00049589,120]
[320916394,1711707079540,-500.0,0.00049589,120]
[320916395,1711707079549,-3505.19,0.00049589,120]
[320916396,1711707079558,-2029.61,0.00049589,120]
[320916397,1711707079569,-500.0,0.00049589,120]
[320916398,1711707079578,-535.86915764,0.00049589,120]
[320916399,1711707079587,-500.0,0.00049589,120]
[320916400,1711707079596,-1662.32,0.00049589,120]
[320916401,1711707079605,-531.09652141,0.00049589,120]
[320916402,1711707079617,-3958.3,0.00049589,120]
[320916403,1711707079625,-522.59,0.00049589,120]
[320916404,1711707079637,-1563.52,0.00049589,21]
[320916405,1711707079646,-547.45,0.00049589,120]
[320916406,1711707079655,-1594.99,0.00049589,120]
[320916407,1711707079664,-725.61,0.00049589,120]
[320916408,1711707079675,-500.0,0.00049589,120]
[320916409,1711707079684,-500.0,0.00049589,120]
[320916410,1711707079693,-1007.23,0.00049589,120]
[320916411,1711707079702,-1325.4,0.00049589,120]
[320916412,1711707079711,-375.39114217,0.00049589,120]
[320916413,1711707079721,-500.0,0.00049589,120]
[320916414,1711707079732,-508.03238998,0.00049589,120]
[320916415,1711707079741,-500.0,0.00049589,120]
[320916416,1711707079750,-500.0,0.00049589,120]
[320916417,1711707079759,-500.0,0.00049589,120]
[320916418,1711707079768,-1456.84,0.00049589,120]
[320916419,1711707079778,-2343.18,0.00049589,120]
[320916420,1711707079787,-2382.95,0.00049589,120]
[320916421,1711707079796,-1458.33,0.00049589,120]
[320916422,1711707079806,-623.04,0.00049589,120]
[320916423,1711707079816,-500.0,0.00049589,120]
[320916424,1711707079825,-534.93437899,0.00049589,120]
[320916425,1711707079960,-514.15,0.00049589,120]
[320916426,1711707079970,-500.0,0.00049589,120]
[320916427,1711707079980,-788.21,0.00049589,120]
[320916428,1711707079989,-917.23,0.00049589,120]
[320916429,1711707079998,-500.0,0.00049589,120]
[320916430,1711707080007,-500.0,0.00049589,120]
[320916431,1711707080017,-161.24595624,0.00049589,120]
[320916432,1711707080026,-500.0,0.00049589,120]
[320916433,1711707080035,-500.0,0.00049589,120]
[320916434,1711707080045,-500.0,0.00049589,120]
[320916435,1711707080055,-1139.31,0.00049589,120]
[320916436,1711707080065,-500.0,0.00049589,120]
[320916437,1711707080075,-500.0,0.00049589,120]
[320916438,1711707080085,-500.0,0.00049589,120]
[320916439,1711707080095,-511.81042472,0.00049589,120]
[320916440,1711707080105,-1695.65,0.00049589,120]
[320916441,1711707080117,-573.84,0.00049589,120]
[320916442,1711707080127,-778.81,0.00049589,120]
[320916443,1711707080136,-500.0,0.00049589,120]
[320916444,1711707080145,-500.0,0.00049589,120]
[320916445,1711707080155,-659.15,0.00049589,120]
[320916446,1711707080165,-1037.80820722,0.00049589,120]
[320916447,1711707080176,-540.15393418,0.00049589,120]
[320916448,1711707080186,-500.0,0.00049589,120]
[320916449,1711707080196,-514.70642779,0.00049589,120]
[320916450,1711707080207,-1202.77,0.00049589,120]
[320916451,1711707080217,-523.45559541,0.00049589,120]
[320916452,1711707080227,-704.23,0.00049589,120]
[320916453,1711707080236,-1099.58,0.00049589,120]
[320916454,1711707080246,-500.0,0.00049589,120]
[320916455,1711707080256,-500.0,0.00049589,120]
[320916456,1711707080266,-500.0,0.00049589,120]
[320916457,1711707080276,-372.80335052,0.00049589,120]
[320916458,1711707080287,-1879.97,0.00049589,120]
[320916459,1711707080297,-500.0,0.00049589,120]
[320916460,1711707080307,-500.0,0.00049589,120]
[320916461,1711707080317,-1766.69,0.00049589,120]
[320916462,1711707080326,-1122.61,0.00049589,120]
[320916463,1711707080336,-500.0,0.00049589,120]
[320916464,1711707080346,-1044.66,0.00049589,120]
[320916465,1711707080356,-500.0,0.00049589,120]
[320916466,1711707080367,-544.45277493,0.00049589,120]
[320916467,1711707080377,-598.90604189,0.00049589,120]
[320916468,1711707080387,-501.92876076,0.00049589,120]
[320916469,1711707080397,-500.0,0.00049589,120]
[320916470,1711707080407,-588.87,0.00049589,120]
[320916471,1711707080418,-500.0,0.00049589,120]
[320916472,1711707080428,-500.0,0.00049589,120]
[320916473,1711707080438,-2921.63,0.00049589,120]
[320916474,1711707080448,-500.0,0.00049589,120]
[320916475,1711707080458,-500.0,0.00049589,120]
[320916476,1711707080467,-500.0,0.00049589,120]
[320916477,1711707080478,-508.87369749,0.00049589,120]
[320916478,1711707080487,-500.0,0.00049589,120]
[320916479,1711707080497,-3211.11,0.00049589,120]
[320916480,1711707080507,-500.0,0.00049589,120]
[320916481,1711707080516,-500.0,0.00049589,120]
[320916482,1711707080526,-500.0,0.00049589,120]
[320916483,1711707080536,-883.55,0.00049589,120]
[320916484,1711707080547,-500.0,0.00049589,120]
[320916485,1711707080557,-500.0,0.00049589,120]
[320916486,1711707080567,-943.89,0.00049589,120]
[320916487,1711707080578,-886.75,0.00049589,120]
[320916488,1711707080588,-500.0,0.00049589,120]
[320916489,1711707080597,-1562.36,0.00049589,120]
[320916490,1711707080607,-506.46907587,0.00049589,120]
[320916491,1711707080617,-500.0,0.00049589,120]
[320916492,1711707080626,-505.73668183,0.00049589,2]
[320916493,1711707080637,-2103.98,0.00049589,120]
[320916494,1711707080648,-500.0,0.00049589,120]
[320916495,1711707080659,-500.0,0.00049589,120]
[320916496,1711707080670,-500.0,0.00049589,120]
[320916497,1711707080680,-500.0,0.00049589,120]
[320916498,1711707080690,-500.0,0.00049589,120]
[320916499,1711707080702,-500.0,0.00049589,120]
[320916500,1711707080713,-500.0,0.00049589,120]
[320916501,1711707080724,-988.79,0.00049589,120]
[320916502,1711707080734,-2161.96,0.00049589,120]
[320916503,1711707080744,-1206.93,0.00049589,120]
[320916504,1711707080753,-3300.79,0.00049589,120]
[320916505,1711707080763,-548.35,0.00049589,120]
[320916506,1711707080772,-1411.11,0.00049589,120]
[320916507,1711707080782,-500.0,0.00049589,120]
[320916508,1711707080791,-500.0,0.00049589,120]
[320916509,1711707080800,-500.0,0.00049589,120]
[320916510,1711707080809,-500.0,0.00049589,120]
[320916511,1711707080820,-500.0,0.00049589,120]
[320916512,1711707080829,-500.0,0.00049589,120]
[320916513,1711707080839,-500.0,0.00049589,120]
[320916514,1711707080848,-500.0,0.00049589,120]
[320916515,1711707080857,-3737.1,0.00049589,120]
[320916516,1711707080867,-500.0,0.00049589,120]
[320916517,1711707080876,-1091.73,0.00049589,120]
[320916518,1711707080885,-150.0,0.00049604,30]
[320916519,1711707080894,-225.50660083,0.00049612,30]
[320916520,1711707080903,-150.0,0.00049638,30]
[320916521,1711707080912,-225.50660083,0.00049651,30]
[320916522,1711707080922,-212.4851557,0.0004968,120]
[320916523,1711707080931,-225.50660083,0.00049689,30]
[320916524,1711707080941,-150.0,0.00049689,30]
[320916525,1711707080950,-150.0,0.00049703,30]
[320916526,1711707080960,-500.0,0.00049714,14]
[320916527,1711707080969,-225.50660083,0.00049727,30]
[320916528,1711707080979,-150.0,0.0004973,30]
[320916529,1711707080990,-937.89664352,0.00049735,26]
[320916530,1711707080999,-225.50660083,0.00049766,30]
[320916531,1711707081009,-150.0,0.00049769,30]
[320916532,1711707081018,-167.14,0.00049772,2]
[320916533,1711707081028,-150.0,0.00049773,30]
[320916534,1711707081038,-168.25128901,0.000498,60]
[320916535,1711707081048,-416.43,0.000498,7]
[320916536,1711707081057,-225.50660083,0.00049804,30]
[320916537,1711707081067,-308.43333333,0.00049808,120]
[320916538,1711707081077,-150.0,0.00049834,30]
[320916539,1711707081086,-225.50660083,0.00049842,30]
[320916540,1711707081096,-150.0,0.00049858,30]
[320916541,1711707081106,-15071.14636521,0.0004986,16]
[320916542,1711707081117,-500.0,0.00049863,120]
[320916543,1711707081126,-500.0,0.00049863,120]
[320916544,1711707081135,-500.0,0.00049863,120]
[320916545,1711707081145,-500.0,0.00049863,120]
[320916546,1711707081154,-522.29830859,0.00049863,120]
[320916547,1711707081164,-500.0,0.00049863,120]
[320916548,1711707081174,-500.0,0.00049863,120]
[320916549,1711707081183,-482.8455469,0.00049863,120]
[320916550,1711707081194,-500.0,0.00049863,120]
[320916551,1711707081204,-500.0,0.00049863,120]
[320916552,1711707081214,-500.0,0.00049863,120]
[320916553,1711707081224,-505.84168154,0.00049863,120]
[320916554,1711707081233,-529.68252939,0.00049863,120]
[320916555,1711707081243,-506.64612655,0.00049863,120]
[320916556,1711707081253,-500.0,0.00049863,120]
[320916557,1711707081262,-500.0,0.00049863,120]
[320916558,1711707081273,-500.0,0.00049863,120]
[320916559,1711707081283,-500.0,0.00049863,15]
[320916560,1711707081292,-500.0,0.00049863,120]
[320916561,1711707081302,-500.0,0.00049863,120]
[320916562,1711707081312,-500.0,0.00049863,120]
[320916563,1711707081321,-500.0,0.00049863,120]
[320916564,1711707081331,-500.0,0.00049863,120]
[320916565,1711707081340,-500.0,0.00049863,120]
[320916566,1711707081350,-500.0,0.00049863,120]
[320916567,1711707081360,-500.0,0.00049863,120]
[320916568,1711707081371,-500.0,0.00049863,120]
[320916569,1711707081380,-500.0,0.00049863,120]
[320916570,1711707081389,-518.57535101,0.00049863,120]
[320916571,1711707081399,-500.0,0.00049863,120]
[320916572,1711707081408,-423.21318638,0.00049863,120]
[320916573,1711707081418,-588.03373297,0.00049863,120]
[320916574,1711707081427,-500.0,0.00049863,120]
[320916575,1711707081437,-280.8650767,0.00049863,120]
[320916576,1711707081446,-500.0,0.00049863,120]
[320916577,1711707081456,-409.7854646,0.00049863,120]
[320916578,1711707081465,-500.0,0.00049863,120]
[320916579,1711707081475,-500.0,0.00049863,120]
[320916580,1711707081484,-556.12922692,0.00049863,120]
[320916581,1711707081494,-500.0,0.00049863,120]
[320916582,1711707081503,-500.0,0.00049863,120]
[320916583,1711707081513,-500.0,0.00049863,120]
[320916584,1711707081523,-500.0,0.00049863,120]
[320916585,1711707081532,-500.0,0.00049863,120]
[320916586,1711707081541,-500.0,0.00049863,120]
[320916587,1711707081551,-500.0,0.00049863,120]
[320916588,1711707081560,-503.57204277,0.00049863,120]
[320916589,1711707081570,-523.63190319,0.00049863,120]
[320916590,1711707081579,-500.0,0.00049863,120]
[320916591,1711707081588,-500.0,0.00049863,120]
[320916592,1711707081598,-500.0,0.00049863,120]
[320916593,1711707081608,-500.0,0.00049863,120]
[320916594,1711707081619,-500.0,0.00049863,120]
[320916595,1711707081628,-713.0,0.00049863,120]
[320916596,1711707081643,-511.16023857,0.00049863,120]
[320916597,1711707081653,-317.16350981,0.00049863,120]
[320916598,1711707081664,-500.0,0.00049863,120]
[320916599,1711707081674,-500.0,0.00049863,120]
[320916600,1711707081684,-500.0,0.00049863,120]
[320916601,1711707081694,-500.0,0.00049863,120]
[320916602,1711707081703,-500.0,0.00049863,120]
[320916603,1711707081714,-500.0,0.00049863,120]
[320916604,1711707081724,-615.07496182,0.00049863,120]
[320916605,1711707081734,-500.0,0.00049863,120]
[320916606,1711707081744,-500.0,0.00049863,120]
[320916607,1711707081754,-500.0,0.00049863,120]
[320916608,1711707081764,-500.0,0.00049863,120]
[320916609,1711707081773,-500.0,0.00049863,120]
[320916610,1711707081783,-500.0,0.00049863,120]
[320916611,1711707081793,-500.0,0.00049863,120]
[320916612,1711707081803,-532.95341411,0.00049863,120]
[320916613,1711707081813,-500.0,0.00049863,120]
[320916614,1711707081822,-500.0,0.00049863,120]
[320916615,1711707081832,-590.81679913,0.00049863,120]
[320916616,1711707081842,-519.52899593,0.00049863,120]
[320916617,1711707081851,-399.24947347,0.00049863,120]
[320916618,1711707081860,-500.0,0.00049863,120]
[320916619,1711707081869,-500.0,0.00049863,120]
[320916620,1711707081879,-500.0,0.00049863,120]
[320916621,1711707081889,-500.0,0.00049863,120]
[320916622,1711707081898,-500.0,0.00049863,120]
[320916623,1711707081908,-500.0,0.00049863,120]
[320916624,1711707081917,-500.0,0.00049863,120]
[320916625,1711707081927,-500.0,0.00049863,120]
[320916626,1711707081937,-500.0,0.00049863,120]
[320916627,1711707081947,-500.0,0.00049863,120]
[320916628,1711707081956,-500.0,0.00049863,120]
[320916629,1711707081966,-500.0,0.00049863,120]
[320916630,1711707081976,-500.0,0.00049863,120]
[320916631,1711707081984,-500.0,0.00049863,120]
[320916632,1711707082112,-500.0,0.00049863,120]
[320916633,1711707082123,-500.0,0.00049863,120]
[320916634,1711707082132,-500.0,0.00049863,120]
[320916635,1711707082141,-567.95431743,0.00049863,120]
[320916636,1711707082150,-500.0,0.00049863,120]
[320916637,1711707082160,-500.0,0.00049863,120]
[320916638,1711707082169,-500.0,0.00049863,120]
[320916639,1711707082178,-500.0,0.00049863,120]
[320916640,1711707082187,-500.0,0.00049863,120]
[320916641,1711707082197,-500.0,0.00049863,120]
[320916642,1711707082207,-500.0,0.00049863,120]
[320916643,1711707082217,-265.01318265,0.00049863,120]
[320916644,1711707082226,-583.8061579,0.00049863,120]
[320916645,1711707082236,-500.0,0.00049863,120]
[320916646,1711707082245,-500.0,0.00049863,120]
[320916647,1711707082254,-282.88491756,0.00049863,120]
[320916648,1711707082263,-506.08928422,0.00049863,120]
[320916649,1711707082273,-556.00941916,0.00049863,120]
[320916650,1711707082283,-500.0,0.00049863,120]
[320916651,1711707082292,-500.0,0.00049863,120]
[320916652,1711707082302,-500.0,0.00049863,120]
[320916653,1711707082311,-500.0,0.00049863,120]
[320916654,1711707082321,-462.8660725,0.00049863,120]
[320916655,1711707082330,-500.0,0.00049863,120]
[320916656,1711707082339,-500.0,0.00049863,120]
[320916657,1711707082348,-500.0,0.00049863,120]
[320916658,1711707082358,-500.0,0.00049863,120]
[320916659,1711707082367,-500.0,0.00049863,120]
[320916660,1711707082376,-500.0,0.00049863,120]
[320916661,1711707082385,-500.0,0.00049863,120]
[320916662,1711707082395,-500.0,0.00049863,120]
[320916663,1711707082404,-500.0,0.00049863,120]
[320916664,1711707082414,-500.0,0.00049863,120]
[320916665,1711707082423,-515.38,0.00049863,120]
[320916666,1711707082432,-500.0,0.00049863,120]
[320916667,1711707082441,-500.0,0.00049863,120]
[320916668,1711707082450,-500.0,0.00049863,120]
[320916669,1711707082459,-500.0,0.00049863,120]
[320916670,1711707082469,-726.93,0.00049863,120]
[320916671,1711707082478,-500.0,0.00049863,120]
[320916672,1711707082487,-500.0,0.00049863,120]
[320916673,1711707082496,-510.2758457,0.00049863,120]
[320916674,1711707082505,-505.35626136,0.00049863,120]
[320916675,1711707082514,-500.0,0.00049863,120]
[320916676,1711707082524,-502.4824416,0.00049863,120]
[320916677,1711707082533,-519.12811142,0.00049863,120]
[320916678,1711707082543,-500.0,0.00049863,120]
[320916679,1711707082552,-500.0,0.00049863,120]
[320916680,1711707082562,-500.0,0.00049863,120]
[320916681,1711707082571,-511.4351017,0.00049863,120]
[320916682,1711707082580,-500.0,0.00049863,120]
[320916683,1711707082590,-500.0,0.00049863,120]
[320916684,1711707082599,-500.0,0.00049863,120]
[320916685,1711707082609,-519.52515839,0.00049863,120]
[320916686,1711707082620,-512.07450958,0.00049863,120]
[320916687,1711707082630,-612.193317,0.00049863,120]
[320916688,1711707082642,-500.0,0.00049863,120]
[320916689,1711707082652,-500.0,0.00049863,120]
[320916690,1711707082661,-500.0,0.00049863,120]
[320916691,1711707082671,-500.0,0.00049863,120]
[320916692,1711707082682,-500.0,0.00049863,120]
[320916693,1711707082692,-500.0,0.00049863,120]
[320916694,1711707082701,-500.0,0.00049863,120]
[320916695,1711707082710,-500.0,0.00049863,120]
[320916696,1711707082720,-500.0,0.00049863,120]
[320916697,1711707082730,-500.0,0.00049863,120]
[320916698,1711707082739,-500.0,0.00049863,120]
[320916699,1711707082748,-560.09,0.00049863,120]
[320916700,1711707082757,-500.0,0.00049863,120]
[320916701,1711707082767,-500.0,0.00049863,120]
[320916702,1711707082776,-500.0,0.00049863,120]
[320916703,1711707082785,-500.0,0.00049863,120]
[320916704,1711707082795,-500.0,0.00049863,120]
[320916705,1711707082805,-500.0,0.00049863,120]
[320916706,1711707082815,-500.0,0.00049863,120]
[320916707,1711707082824,-500.0,0.00049863,120]
[320916708,1711707082834,-500.0,0.00049863,120]
[320916709,1711707082843,-500.0,0.00049863,120]
[320916710,1711707082852,-500.0,0.00049863,120]
[320916711,1711707082862,-500.0,0.00049863,120]
[320916712,1711707082873,-500.0,0.00049863,120]
[320916713,1711707082882,-500.0,0.00049863,120]
[320916714,1711707082891,-500.0,0.00049863,120]
[320916715,1711707082901,-500.0,0.00049863,120]
[320916716,1711707082910,-500.0,0.00049863,120]
[320916717,1711707082919,-500.0,0.00049863,120]
[320916718,1711707082929,-500.0,0.00049863,120]
[320916719,1711707082939,-500.0,0.00049863,120]
[320916720,1711707082949,-212.61,0.00049863,120]
[320916721,1711707082958,-500.0,0.00049863,120]
[320916722,1711707082967,-500.0,0.00049863,120]
[320916723,1711707082976,-500.0,0.00049863,120]
[320916724,1711707082985,-500.0,0.00049863,120]
[320916725,1711707082995,-500.0,0.00049863,120]
[320916726,1711707083004,-500.0,0.00049863,120]
[320916727,1711707083013,-500.0,0.00049863,120]
[320916728,1711707083022,-465.33822298,0.00049863,120]
[320916729,1711707083031,-500.0,0.00049863,120]
[320916730,1711707083040,-500.0,0.00049863,120]
[320916731,1711707083050,-500.0,0.00049863,120]
[320916732,1711707083059,-500.0,0.00049863,120]
[320916733,1711707083068,-500.0,0.00049863,120]
[320916734,1711707083078,-500.0,0.00049863,120]
[320916735,1711707083087,-500.0,0.00049863,120]
[320916736,1711707083097,-500.0,0.00049863,120]
[320916737,1711707083107,-500.0,0.00049863,120]
[320916738,1711707083116,-676.03,0.00049863,120]
[320916739,1711707083126,-500.0,0.00049863,120]
[320916740,1711707083135,-504.71796659,0.00049863,120]
[320916741,1711707083144,-478.74837675,0.00049863,120]
[320916742,1711707083153,-500.0,0.00049863,120]
[320916743,1711707083163,-500.0,0.00049863,2]
[320916744,1711707083172,-500.0,0.00049863,120]
[320916745,1711707083181,-500.0,0.00049863,120]
[320916746,1711707083191,-500.0,0.00049863,120]
[320916747,1711707083200,-500.0,0.00049863,120]
[320916748,1711707083210,-602.44,0.00049863,120]
[320916749,1711707083219,-500.0,0.00049863,120]
[320916750,1711707083229,-500.0,0.00049863,120]
[320916751,1711707083239,-439.60604883,0.00049863,120]
[320916752,1711707083248,-745.16,0.00049863,120]
[320916753,1711707083257,-500.0,0.00049863,120]
[320916754,1711707083267,-500.0,0.00049863,120]
[320916755,1711707083277,-500.0,0.00049863,120]
[320916756,1711707083287,-524.07561491,0.00049863,120]
[320916757,1711707083297,-500.0,0.00049863,120]
[320916758,1711707083306,-500.0,0.00049863,120]
[320916759,1711707083316,-500.0,0.00049863,120]
[320916760,1711707083325,-500.0,0.00049863,120]
[320916761,1711707083334,-500.0,0.00049863,120]
[320916762,1711707083344,-500.0,0.00049863,120]
[320916763,1711707083354,-620.83701607,0.00049863,120]
[320916764,1711707083363,-500.0,0.00049863,7]
[320916765,1711707083374,-500.0,0.00049863,120]
[320916766,1711707083383,-500.0,0.00049863,120]
[320916767,1711707083392,-509.85403746,0.00049863,120]
[320916768,1711707083401,-500.0,0.00049863,120]
[320916769,1711707083411,-500.0,0.00049863,120]
[320916770,1711707083420,-500.0,0.00049863,120]
[320916771,1711707083429,-568.76,0.00049863,120]
[320916772,1711707083438,-599.15,0.00049863,120]
[320916773,1711707083447,-500.0,0.00049863,120]
[320916774,1711707083456,-513.97314852,0.00049863,120]
[320916775,1711707083466,-624.26,0.00049863,120]
[320916776,1711707083476,-500.0,0.00049863,120]
[320916777,1711707083486,-591.35850503,0.00049863,120]
[320916778,1711707083496,-500.0,0.00049863,120]
[320916779,1711707083505,-500.0,0.00049863,120]
[320916780,1711707083515,-500.0,0.00049863,120]
[320916781,1711707083525,-500.0,0.00049863,120]
[320916782,1711707083535,-500.0,0.00049863,120]
[320916783,1711707083545,-500.0,0.00049863,120]
[320916784,1711707083556,-212.0489177,0.00049863,120]
[320916785,1711707083566,-500.0,0.00049863,120]
[320916786,1711707083575,-500.0,0.00049863,120]
[320916787,1711707083584,-500.0,0.00049863,120]
[320916788,1711707083594,-500.0,0.00049863,120]
[320916789,1711707083604,-519.37632713,0.00049863,120]
[320916790,1711707083613,-500.0,0.00049863,120]
[320916791,1711707083623,-500.0,0.00049863,120]
[320916792,1711707083633,-500.0,0.00049863,120]
[320916793,1711707083642,-500.0,0.00049863,120]
[320916794,1711707083655,-500.0,0.00049863,120]
[320916795,1711707083666,-500.0,0.00049863,120]
[320916796,1711707083675,-500.0,0.00049863,120]
[320916797,1711707083684,-500.0,0.00049863,120]
[320916798,1711707083693,-516.20342505,0.00049863,120]
[320916799,1711707083702,-500.0,0.00049863,120]
[320916800,1711707083712,-500.0,0.00049863,120]
[320916801,1711707083722,-500.0,0.00049863,120]
[320916802,1711707083732,-500.0,0.00049863,120]
[320916803,1711707083744,-500.0,0.00049863,30]
[320916804,1711707083753,-500.0,0.00049863,120]
[320916805,1711707083762,-500.0,0.00049863,120]
[320916806,1711707083771,-500.0,0.00049863,120]
[320916807,1711707083781,-500.0,0.00049863,120]
[320916808,1711707083790,-500.0,0.00049863,120]
[320916809,1711707083801,-500.0,0.00049863,120]
[320916810,1711707083810,-500.0,0.00049863,120]
[320916811,1711707083820,-500.0,0.00049863,120]
[320916812,1711707083830,-500.0,0.00049863,120]
[320916813,1711707083839,-500.0,0.00049863,120]
[320916814,1711707083848,-500.0,0.00049863,120]
[320916815,1711707083858,-500.0,0.00049863,120]
[320916816,1711707083868,-500.0,0.00049863,120]
[320916817,1711707083878,-500.0,0.00049863,120]
[320916818,1711707083887,-500.0,0.00049863,120]
[320916819,1711707083896,-500.0,0.00049863,120]
[320916820,1711707083905,-509.68489569,0.00049863,120]
[320916821,1711707083915,-500.0,0.00049863,120]
[320916822,1711707083924,-504.41851267,0.00049863,120]
[320916823,1711707084046,-500.0,0.00049863,120]
[320916824,1711707084055,-531.70836665,0.00049863,120]
[320916825,1711707084065,-523.30653363,0.00049863,120]
[320916826,1711707084074,-158.28516311,0.00049863,120]
[320916827,1711707084084,-500.0,0.00049863,120]
[320916828,1711707084093,-500.0,0.00049863,120]
[320916829,1711707084103,-500.0,0.00049863,120]
[320916830,1711707084112,-500.0,0.00049863,120]
[320916831,1711707084122,-500.0,0.00049863,120]
[320916832,1711707084132,-504.71,0.00049863,120]
[320916833,1711707084141,-500.0,0.00049863,120]
[320916834,1711707084151,-500.0,0.00049863,120]
[320916835,1711707084160,-500.0,0.00049863,120]
[320916836,1711707084170,-500.0,0.00049863,120]
[320916837,1711707084180,-500.0,0.00049863,120]
[320916838,1711707084190,-500.0,0.00049863,120]
[320916839,1711707084200,-500.0,0.00049863,120]
[320916840,1711707084210,-500.0,0.00049863,120]
[320916841,1711707084219,-525.3236889,0.00049863,120]
[320916842,1711707084229,-500.0,0.00049863,120]
[320916843,1711707084239,-224.02354444,0.00049863,120]
[320916844,1711707084248,-500.0,0.00049863,120]
[320916845,1711707084258,-601.94,0.00049863,120]
[320916846,1711707084267,-500.0,0.00049863,120]
[320916847,1711707084277,-555.93,0.00049863,120]
[320916848,1711707084286,-500.0,0.00049863,120]
[320916849,1711707084296,-500.0,0.00049863,120]
[320916850,1711707084305,-314.43061173,0.00049863,120]
[320916851,1711707084314,-500.0,0.00049863,120]
[320916852,1711707084323,-500.0,0.00049863,120]
[320916853,1711707084333,-500.0,0.00049863,120]
[320916854,1711707084342,-500.0,0.00049863,120]
[320916855,1711707084351,-500.0,0.00049863,120]
[320916856,1711707084360,-500.0,0.00049863,120]
[320916857,1711707084369,-500.0,0.00049863,120]
[320916858,1711707084378,-500.0,0.00049863,120]
[320916859,1711707084387,-500.0,0.00049863,120]
[320916860,1711707084397,-500.0,0.00049863,120]
[320916861,1711707084406,-500.0,0.00049863,120]
[320916862,1711707084415,-500.0,0.00049863,120]
[320916863,1711707084425,-284.81401608,0.00049863,120]
[320916864,1711707084434,-500.0,0.00049863,120]
[320916865,1711707084443,-500.0,0.00049863,120]
[320916866,1711707084452,-500.0,0.00049863,120]
[320916867,1711707084461,-500.0,0.00049863,120]
[320916868,1711707084470,-500.0,0.00049863,120]
[320916869,1711707084479,-500.0,0.00049863,120]
[320916870,1711707084489,-500.0,0.00049863,120]
[320916871,1711707084498,-500.0,0.00049863,120]
[320916872,1711707084507,-513.6725944,0.00049863,120]
[320916873,1711707084517,-500.0,0.00049863,120]
[320916874,1711707084526,-500.0,0.00049863,120]